[Event "Early-Titled-Tuesday-Blitz-April-16-2024"]
[Site "Chess.com"]
[Date "2024.04.16"]
[Round "9"]
[White "atalz0"]
[Black "bubeliang"]
[Result "1/2-1/2"]
[WhiteElo "2487"]
[BlackElo "2772"]
[TimeControl "180+1"]
[EndTime "9:48:01 PDT"]
[Termination "Game drawn by repetition"]

1. d4 {[%clk 0:03:00.9]} 1... d5 {[%clk 0:02:58.6]} 2. c4 {[%clk 0:03:00.8]}
2... e6 {[%clk 0:02:58.5]} 3. Nc3 {[%clk 0:03:00.6]} 3... Nf6 {[%clk 0:02:58.4]}
4. cxd5 {[%clk 0:03:00.7]} 4... exd5 {[%clk 0:02:59.3]} 5. Bg5 {[%clk
0:03:00.4]} 5... Be7 {[%clk 0:02:58.2]} 6. e3 {[%clk 0:03:00.6]} 6... O-O {[%clk
0:02:57.5]} 7. Bd3 {[%clk 0:03:00.9]} 7... c6 {[%clk 0:02:57.1]} 8. Nge2 {[%clk
0:03:00.9]} 8... h6 {[%clk 0:02:54.6]} 9. Bh4 {[%clk 0:03:00.8]} 9... Re8 {[%clk
0:02:52.7]} 10. Qc2 {[%clk 0:02:59.9]} 10... a5 {[%clk 0:02:52]} 11. O-O {[%clk
0:02:58.8]} 11... Na6 {[%clk 0:02:51.9]} 12. a3 {[%clk 0:02:57.3]} 12... Nc7
{[%clk 0:02:50.4]} 13. Na4 {[%clk 0:02:52.2]} 13... Ne6 {[%clk 0:02:46.4]} 14.
Rac1 {[%clk 0:02:42.9]} 14... b5 {[%clk 0:02:40.1]} 15. Bxf6 {[%clk 0:02:07.1]}
15... Bxf6 {[%clk 0:02:38.9]} 16. Nc5 {[%clk 0:02:07.3]} 16... Nxc5 {[%clk
0:02:29.6]} 17. Qxc5 {[%clk 0:02:08.2]} 17... Bd7 {[%clk 0:02:29.6]} 18. a4
{[%clk 0:01:58.2]} 18... bxa4 {[%clk 0:02:22.9]} 19. Qa3 {[%clk 0:01:49.1]}
19... Qb6 {[%clk 0:02:20.3]} 20. Nc3 {[%clk 0:01:44.4]} 20... Be7 {[%clk
0:02:12.9]} 21. Nxa4 {[%clk 0:01:32.5]} 21... Qb4 {[%clk 0:01:54.6]} 22. Nc5
{[%clk 0:01:30.3]} 22... Bxc5 {[%clk 0:01:52.5]} 23. Rxc5 {[%clk 0:01:28.4]}
23... Reb8 {[%clk 0:01:51.9]} 24. Ra1 {[%clk 0:01:11.5]} 24... Qxb2 {[%clk
0:01:45.1]} 25. Qxb2 {[%clk 0:01:07.5]} 25... Rxb2 {[%clk 0:01:46]} 26. Rcxa5
{[%clk 0:01:07.3]} 26... Rab8 {[%clk 0:01:37.1]} 27. Ra8 {[%clk 0:01:04.2]}
27... g6 {[%clk 0:01:36.6]} 28. Rxb8+ {[%clk 0:01:00.1]} 28... Rxb8 {[%clk
0:01:35.6]} 29. h3 {[%clk 0:00:50.5]} 29... Rb2 {[%clk 0:01:32]} 30. Bf1 {[%clk
0:00:36.5]} 30... Rc2 {[%clk 0:01:30.7]} 31. Ra7 {[%clk 0:00:33]} 31... Bf5
{[%clk 0:01:30.4]} 32. Ra1 {[%clk 0:00:27.2]} 32... h5 {[%clk 0:01:29.4]} 33. g3
{[%clk 0:00:25.8]} 33... Kg7 {[%clk 0:01:28.4]} 34. h4 {[%clk 0:00:26]} 34...
Rc3 {[%clk 0:01:15.4]} 35. Bg2 {[%clk 0:00:24.8]} 35... Rc2 {[%clk 0:01:16]} 36.
Bf3 {[%clk 0:00:24.8]} 36... Bd3 {[%clk 0:01:13.1]} 37. Kg2 {[%clk 0:00:23.1]}
37... Bf5 {[%clk 0:01:12.5]} 38. Rd1 {[%clk 0:00:18.3]} 38... Rc3 {[%clk
0:01:12.1]} 39. Ra1 {[%clk 0:00:18.2]} 39... Rc2 {[%clk 0:01:11.9]} 40. Rd1
{[%clk 0:00:18.4]} 40... Kf6 {[%clk 0:01:12.2]} 41. Ra1 {[%clk 0:00:18.5]} 41...
Be6 {[%clk 0:01:12.4]} 42. Rd1 {[%clk 0:00:17.8]} 42... Kg7 {[%clk 0:01:08.4]}
43. Ra1 {[%clk 0:00:17.2]} 43... Bf5 {[%clk 0:01:08.7]} 1/2-1/2

[Event "Early-Titled-Tuesday-Blitz-April-16-2024"]
[Site "Chess.com"]
[Date "2024.04.16"]
[Round "9"]
[White "IshviAggarwal"]
[Black "Heinza9"]
[Result "0-1"]
[WhiteElo "2138"]
[BlackElo "2324"]
[TimeControl "180+1"]
[EndTime "9:48:03 PDT"]
[Termination "Heinza9 won by resignation"]

1. Nf3 {[%clk 0:02:59.3]} 1... f5 {[%clk 0:02:59.6]} 2. g3 {[%clk 0:02:56.2]}
2... Nf6 {[%clk 0:02:59.6]} 3. Bg2 {[%clk 0:02:56.7]} 3... g6 {[%clk 0:03:00.1]}
4. O-O {[%clk 0:02:57.4]} 4... Bg7 {[%clk 0:03:00.4]} 5. d3 {[%clk 0:02:56.6]}
5... O-O {[%clk 0:03:00.4]} 6. Nbd2 {[%clk 0:02:55.7]} 6... d6 {[%clk
0:03:00.6]} 7. e4 {[%clk 0:02:56.3]} 7... e5 {[%clk 0:03:00.6]} 8. b3 {[%clk
0:02:55]} 8... Nc6 {[%clk 0:03:00.7]} 9. Bb2 {[%clk 0:02:55.6]} 9... f4 {[%clk
0:03:00.5]} 10. a4 {[%clk 0:02:46.9]} 10... a5 {[%clk 0:02:54.7]} 11. Nc4 {[%clk
0:02:46.2]} 11... Nh5 {[%clk 0:02:52.5]} 12. d4 {[%clk 0:02:33.7]} 12... fxg3
{[%clk 0:02:38.9]} 13. hxg3 {[%clk 0:02:29.2]} 13... exd4 {[%clk 0:02:36.1]} 14.
Nxd4 {[%clk 0:02:29]} 14... Nxd4 {[%clk 0:02:19.9]} 15. Bxd4 {[%clk 0:02:29.9]}
15... Be6 {[%clk 0:02:12.3]} 16. Ne3 {[%clk 0:02:17]} 16... Bh6 {[%clk
0:01:54.7]} 17. Ng4 {[%clk 0:02:03.2]} 17... Bg7 {[%clk 0:01:27.1]} 18. Bxg7
{[%clk 0:02:00.1]} 18... Nxg7 {[%clk 0:01:27.1]} 19. f4 {[%clk 0:01:55.8]} 19...
h5 {[%clk 0:01:24.8]} 20. Ne3 {[%clk 0:01:54.4]} 20... c6 {[%clk 0:01:22.8]} 21.
Qd4 {[%clk 0:01:53.7]} 21... c5 {[%clk 0:01:14]} 22. Qc3 {[%clk 0:01:40.2]}
22... Qb6 {[%clk 0:01:09.3]} 23. Kh2 {[%clk 0:01:35.5]} 23... Rad8 {[%clk
0:01:04.8]} 24. Rad1 {[%clk 0:01:34.6]} 24... c4 {[%clk 0:00:59.9]} 25. Nxc4
{[%clk 0:01:23.7]} 25... Qc7 {[%clk 0:00:57.4]} 26. Qxa5 {[%clk 0:01:19.5]}
26... b6 {[%clk 0:00:56.3]} 27. Qxb6 {[%clk 0:01:17.7]} 27... Qe7 {[%clk
0:00:55.6]} 28. Nxd6 {[%clk 0:01:09.4]} 28... h4 {[%clk 0:00:54.8]} 29. Qb7
{[%clk 0:00:59.6]} 29... hxg3+ {[%clk 0:00:51.1]} 30. Kg1 {[%clk 0:00:33.7]}
30... Qh4 {[%clk 0:00:50.8]} 31. Rfe1 {[%clk 0:00:26.4]} 31... Rxf4 {[%clk
0:00:46.8]} 0-1

[Event "Early-Titled-Tuesday-Blitz-April-16-2024"]
[Site "Chess.com"]
[Date "2024.04.16"]
[Round "9"]
[White "GlavkonVVS"]
[Black "FuenfgegenWilly"]
[Result "1-0"]
[WhiteElo "2583"]
[BlackElo "2452"]
[TimeControl "180+1"]
[EndTime "9:48:07 PDT"]
[Termination "GlavkonVVS won by resignation"]

1. Nf3 {[%clk 0:03:00.9]} 1... f5 {[%clk 0:02:58.2]} 2. g3 {[%clk 0:03:01]} 2...
Nc6 {[%clk 0:02:58.1]} 3. Bg2 {[%clk 0:03:01.4]} 3... e5 {[%clk 0:02:58.5]} 4.
d3 {[%clk 0:03:01.7]} 4... Nf6 {[%clk 0:02:59]} 5. c4 {[%clk 0:03:01.6]} 5...
Bb4+ {[%clk 0:02:58.8]} 6. Bd2 {[%clk 0:02:59.6]} 6... Bxd2+ {[%clk 0:02:58.6]}
7. Qxd2 {[%clk 0:02:59.4]} 7... d6 {[%clk 0:02:59.2]} 8. Nc3 {[%clk 0:02:59.4]}
8... O-O {[%clk 0:02:59.7]} 9. O-O {[%clk 0:02:57.3]} 9... Qe8 {[%clk
0:02:59.9]} 10. Rab1 {[%clk 0:02:53.6]} 10... Qh5 {[%clk 0:02:59.3]} 11. Qg5
{[%clk 0:02:52.4]} 11... Qxg5 {[%clk 0:02:54.8]} 12. Nxg5 {[%clk 0:02:52.4]}
12... h6 {[%clk 0:02:50.6]} 13. Nf3 {[%clk 0:02:52.4]} 13... g5 {[%clk
0:02:50.6]} 14. b4 {[%clk 0:02:52.1]} 14... Ne7 {[%clk 0:02:49.5]} 15. c5 {[%clk
0:02:51.2]} 15... Be6 {[%clk 0:02:47.4]} 16. Nb5 {[%clk 0:02:40.2]} 16... Bxa2
{[%clk 0:01:54.1]} 17. Rb2 {[%clk 0:02:33.9]} 17... Bd5 {[%clk 0:01:43.1]} 18.
Nxc7 {[%clk 0:02:31.4]} 18... Rad8 {[%clk 0:01:40.7]} 19. cxd6 {[%clk
0:02:26.7]} 19... Rxd6 {[%clk 0:01:39.3]} 20. Nxe5 {[%clk 0:02:24.7]} 20... Bxg2
{[%clk 0:01:29.4]} 21. Kxg2 {[%clk 0:02:24.7]} 21... Rc8 {[%clk 0:01:20.7]} 22.
Nb5 {[%clk 0:02:20.9]} 22... Rb6 {[%clk 0:01:20.5]} 23. Nxa7 {[%clk 0:02:07.8]}
23... Ra8 {[%clk 0:01:20.6]} 24. Ra1 {[%clk 0:02:07.2]} 24... Nc8 {[%clk
0:01:20.6]} 25. Nc4 {[%clk 0:02:01.1]} 25... Re6 {[%clk 0:01:18.7]} 26. Rba2
{[%clk 0:01:59.1]} 26... Rxa7 {[%clk 0:00:48.8]} 27. Rxa7 {[%clk 0:01:57.8]}
27... Nxa7 {[%clk 0:00:49.7]} 28. Rxa7 {[%clk 0:01:57.9]} 28... Rxe2 {[%clk
0:00:50.6]} 29. Rxb7 {[%clk 0:01:52.1]} 29... Ng4 {[%clk 0:00:50.3]} 30. b5
{[%clk 0:01:50.3]} 30... Rxf2+ {[%clk 0:00:42.7]} 31. Kg1 {[%clk 0:01:50.4]}
31... Rc2 {[%clk 0:00:34.8]} 32. h3 {[%clk 0:01:39.1]} 32... Nf6 {[%clk
0:00:25.9]} 33. b6 {[%clk 0:01:36.3]} 33... Rc1+ {[%clk 0:00:26.2]} 34. Kf2
{[%clk 0:01:35.6]} 34... Rb1 {[%clk 0:00:27.1]} 35. Ke3 {[%clk 0:01:26.3]} 35...
h5 {[%clk 0:00:19.2]} 36. Kd4 {[%clk 0:01:25.3]} 36... f4 {[%clk 0:00:18.8]} 37.
gxf4 {[%clk 0:01:25.1]} 37... gxf4 {[%clk 0:00:19.1]} 38. Ke5 {[%clk 0:01:15.6]}
38... f3 {[%clk 0:00:19.2]} 39. Kxf6 {[%clk 0:01:15.6]} 39... f2 {[%clk
0:00:19.5]} 40. Ne3 {[%clk 0:01:15.1]} 40... Re1 {[%clk 0:00:19.7]} 41. Rg7+
{[%clk 0:01:13.6]} 41... Kf8 {[%clk 0:00:17.7]} 42. b7 {[%clk 0:01:10.4]} 42...
f1=Q+ {[%clk 0:00:16.6]} 43. Nxf1 {[%clk 0:01:10.5]} 43... Rxf1+ {[%clk
0:00:17.5]} 44. Ke5 {[%clk 0:01:10.6]} 44... Rb1 {[%clk 0:00:16.5]} 45. Rc7
{[%clk 0:01:10.2]} 1-0

[Event "Early-Titled-Tuesday-Blitz-April-16-2024"]
[Site "Chess.com"]
[Date "2024.04.16"]
[Round "9"]
[White "Bastiandash"]
[Black "Fjal"]
[Result "1-0"]
[WhiteElo "2537"]
[BlackElo "2332"]
[TimeControl "180+1"]
[EndTime "9:48:09 PDT"]
[Termination "Bastiandash won by resignation"]

1. e4 {[%clk 0:02:50.2]} 1... d6 {[%clk 0:02:55.5]} 2. d4 {[%clk 0:02:48.9]}
2... g6 {[%clk 0:02:56.4]} 3. Nc3 {[%clk 0:02:48.1]} 3... Bg7 {[%clk 0:02:57]}
4. Be3 {[%clk 0:02:48.6]} 4... c6 {[%clk 0:02:56.5]} 5. f4 {[%clk 0:02:35]} 5...
Qa5 {[%clk 0:02:55.9]} 6. Nf3 {[%clk 0:02:32.9]} 6... Nf6 {[%clk 0:02:56.4]} 7.
Qd2 {[%clk 0:02:30.3]} 7... b5 {[%clk 0:02:56.6]} 8. e5 {[%clk 0:02:30.7]} 8...
Ng4 {[%clk 0:02:56.1]} 9. Bg1 {[%clk 0:02:28.9]} 9... O-O {[%clk 0:02:42]} 10.
h3 {[%clk 0:02:22.2]} 10... Nh6 {[%clk 0:02:39.4]} 11. g4 {[%clk 0:02:22.8]}
11... f6 {[%clk 0:02:38.9]} 12. exf6 {[%clk 0:02:16.8]} 12... exf6 {[%clk
0:02:35.7]} 13. Be3 {[%clk 0:02:14.1]} 13... Re8 {[%clk 0:02:27]} 14. O-O-O
{[%clk 0:02:11.4]} 14... b4 {[%clk 0:02:24.4]} 15. Nb1 {[%clk 0:02:12.1]} 15...
Qxa2 {[%clk 0:02:24.7]} 16. f5 {[%clk 0:02:10.6]} 16... Nf7 {[%clk 0:01:59.8]}
17. fxg6 {[%clk 0:02:09.1]} 17... hxg6 {[%clk 0:02:00.7]} 18. Bd3 {[%clk
0:02:09.9]} 18... f5 {[%clk 0:02:00.5]} 19. gxf5 {[%clk 0:02:09.4]} 19... Bxf5
{[%clk 0:01:44.6]} 20. Bxf5 {[%clk 0:02:08.2]} 20... gxf5 {[%clk 0:01:45.5]} 21.
Rhg1 {[%clk 0:02:07.7]} 21... Nd7 {[%clk 0:01:32.7]} 22. Bh6 {[%clk 0:01:53.7]}
22... Nxh6 {[%clk 0:01:33.1]} 23. Qxh6 {[%clk 0:01:54.2]} 23... Qf7 {[%clk
0:01:33.2]} 24. Qxd6 {[%clk 0:01:14.9]} 24... Red8 {[%clk 0:00:52.9]} 25. Rxg7+
{[%clk 0:01:06]} 25... Kxg7 {[%clk 0:00:47.4]} 26. Rg1+ {[%clk 0:01:06.9]} 26...
Kh8 {[%clk 0:00:43.2]} 27. Ng5 {[%clk 0:01:00.9]} 27... Qf6 {[%clk 0:00:29.3]}
28. Qf4 {[%clk 0:00:49.3]} 28... Qg6 {[%clk 0:00:16.8]} 29. Qh4+ {[%clk
0:00:41.6]} 29... Kg7 {[%clk 0:00:17.2]} 30. Ne6+ {[%clk 0:00:37.8]} 30... Kf7
{[%clk 0:00:14.8]} 31. Rxg6 {[%clk 0:00:36.8]} 1-0

[Event "Early-Titled-Tuesday-Blitz-April-16-2024"]
[Site "Chess.com"]
[Date "2024.04.16"]
[Round "9"]
[White "Timerkhanov"]
[Black "SpeedofLight0"]
[Result "1-0"]
[WhiteElo "2683"]
[BlackElo "3066"]
[TimeControl "180+1"]
[EndTime "9:48:11 PDT"]
[Termination "Timerkhanov won by resignation"]

1. d4 {[%clk 0:03:00.9]} 1... d6 {[%clk 0:02:58.3]} 2. Nf3 {[%clk 0:03:00.6]}
2... g6 {[%clk 0:02:58.1]} 3. g3 {[%clk 0:03:01]} 3... Bd7 {[%clk 0:02:58.3]} 4.
Bg2 {[%clk 0:03:01.2]} 4... Qc8 {[%clk 0:02:58.8]} 5. h4 {[%clk 0:02:58.7]} 5...
Nf6 {[%clk 0:02:57.3]} 6. c4 {[%clk 0:02:58]} 6... Bg7 {[%clk 0:02:57]} 7. Nc3
{[%clk 0:02:58.4]} 7... Nc6 {[%clk 0:02:57.2]} 8. d5 {[%clk 0:02:53.6]} 8... Nb8
{[%clk 0:02:57.3]} 9. e4 {[%clk 0:02:51.2]} 9... Bg4 {[%clk 0:02:56.9]} 10. O-O
{[%clk 0:02:39.3]} 10... O-O {[%clk 0:02:56.9]} 11. Re1 {[%clk 0:02:38.7]} 11...
e5 {[%clk 0:02:56.7]} 12. Be3 {[%clk 0:02:31.8]} 12... Na6 {[%clk 0:02:50.9]}
13. Qc2 {[%clk 0:02:30.8]} 13... c5 {[%clk 0:02:43.3]} 14. a3 {[%clk 0:02:25.8]}
14... Bd7 {[%clk 0:02:40.7]} 15. Rab1 {[%clk 0:02:12.5]} 15... Ng4 {[%clk
0:02:40.5]} 16. Bd2 {[%clk 0:02:12.7]} 16... f5 {[%clk 0:02:40.1]} 17. Ng5
{[%clk 0:02:10.2]} 17... f4 {[%clk 0:02:38.5]} 18. Ne6 {[%clk 0:01:56.1]} 18...
Bxe6 {[%clk 0:02:28.6]} 19. dxe6 {[%clk 0:01:57]} 19... Qxe6 {[%clk 0:02:28.9]}
20. Nd5 {[%clk 0:01:56.7]} 20... Bh6 {[%clk 0:01:58.5]} 21. Qd3 {[%clk
0:01:47.1]} 21... Rf7 {[%clk 0:00:50.5]} 22. Bh3 {[%clk 0:01:41.4]} 22... Bg7
{[%clk 0:00:27.6]} 23. f3 {[%clk 0:01:39.9]} 23... h5 {[%clk 0:00:27.1]} 24.
gxf4 {[%clk 0:01:33.5]} 24... exf4 {[%clk 0:00:25.1]} 25. Nxf4 {[%clk
0:01:29.5]} 25... Rxf4 {[%clk 0:00:12.6]} 26. Bxf4 {[%clk 0:01:28.9]} 26... Bd4+
{[%clk 0:00:12.5]} 27. Kg2 {[%clk 0:01:26.4]} 27... Qf6 {[%clk 0:00:10.9]} 28.
Bg5 {[%clk 0:01:25.2]} 28... Qf7 {[%clk 0:00:07.7]} 29. fxg4 {[%clk 0:01:18]}
29... Qf2+ {[%clk 0:00:05.3]} 30. Kh1 {[%clk 0:01:18.3]} 30... Be5 {[%clk
0:00:02.9]} 31. Re2 {[%clk 0:01:16.2]} 31... Qd4 {[%clk 0:00:03.3]} 32. Qxd4
{[%clk 0:01:16.3]} 32... cxd4 {[%clk 0:00:04.2]} 33. gxh5 {[%clk 0:01:16.4]}
33... gxh5 {[%clk 0:00:04.4]} 34. Be6+ {[%clk 0:01:10.8]} 34... Kh8 {[%clk
0:00:03.9]} 35. Rf1 {[%clk 0:01:09.8]} 35... Nc5 {[%clk 0:00:04.1]} 36. Bf6+
{[%clk 0:01:07.9]} 36... Bxf6 {[%clk 0:00:02]} 37. Rxf6 {[%clk 0:01:08.8]} 37...
d3 {[%clk 0:00:02.9]} 38. Rg2 {[%clk 0:01:04.2]} 38... Kh7 {[%clk 0:00:02.3]}
39. Bf5+ {[%clk 0:01:04.1]} 1-0

[Event "Early-Titled-Tuesday-Blitz-April-16-2024"]
[Site "Chess.com"]
[Date "2024.04.16"]
[Round "9"]
[White "viditchess"]
[Black "Salem-AR"]
[Result "0-1"]
[WhiteElo "3125"]
[BlackElo "3040"]
[TimeControl "180+1"]
[EndTime "9:48:14 PDT"]
[Termination "Salem-AR won by resignation"]

1. e4 {[%clk 0:03:00.9]} 1... c5 {[%clk 0:02:59.8]} 2. Nf3 {[%clk 0:03:00.9]}
2... d6 {[%clk 0:03:00.5]} 3. d4 {[%clk 0:02:59.5]} 3... cxd4 {[%clk 0:03:01.4]}
4. Nxd4 {[%clk 0:03:00.1]} 4... Nf6 {[%clk 0:03:01.9]} 5. Nc3 {[%clk 0:03:00.5]}
5... a6 {[%clk 0:03:02.7]} 6. Bg5 {[%clk 0:02:58.2]} 6... e6 {[%clk 0:03:02.4]}
7. Qf3 {[%clk 0:02:57.2]} 7... Nbd7 {[%clk 0:03:01.9]} 8. O-O-O {[%clk
0:02:52.8]} 8... Qc7 {[%clk 0:03:02.4]} 9. g4 {[%clk 0:02:50.8]} 9... b5 {[%clk
0:02:57.6]} 10. a3 {[%clk 0:02:44.1]} 10... Rb8 {[%clk 0:02:57.3]} 11. Bxf6
{[%clk 0:02:41.5]} 11... gxf6 {[%clk 0:02:56.6]} 12. h4 {[%clk 0:02:22.3]} 12...
b4 {[%clk 0:02:56.1]} 13. axb4 {[%clk 0:02:22.8]} 13... Rxb4 {[%clk 0:02:57]}
14. g5 {[%clk 0:02:18.1]} 14... Qb6 {[%clk 0:02:40.3]} 15. Nb3 {[%clk
0:02:15.4]} 15... Be7 {[%clk 0:02:37.9]} 16. Na2 {[%clk 0:01:50.9]} 16... Ra4
{[%clk 0:02:30.1]} 17. Nc3 {[%clk 0:01:49.8]} 17... Rb4 {[%clk 0:02:30.7]} 18.
Kb1 {[%clk 0:01:45.4]} 18... fxg5 {[%clk 0:02:15.6]} 19. Na2 {[%clk 0:01:44.5]}
19... Ra4 {[%clk 0:02:14]} 20. Qc3 {[%clk 0:01:41.8]} 20... Bf6 {[%clk
0:02:10.3]} 21. Qd2 {[%clk 0:01:24.5]} 21... gxh4 {[%clk 0:02:01.6]} 22. f4
{[%clk 0:01:13.9]} 22... Rxe4 {[%clk 0:01:54.7]} 23. Bg2 {[%clk 0:01:05.8]}
23... Re3 {[%clk 0:01:36.3]} 24. f5 {[%clk 0:00:43.8]} 24... Ne5 {[%clk
0:01:10.3]} 25. fxe6 {[%clk 0:00:33.7]} 25... Bxe6 {[%clk 0:01:07.3]} 26. Bd5
{[%clk 0:00:31.6]} 26... Nc4 {[%clk 0:00:52.5]} 27. Qf2 {[%clk 0:00:19.7]} 27...
Na3+ {[%clk 0:00:35.4]} 28. Ka1 {[%clk 0:00:13.8]} 28... Bxb2+ {[%clk
0:00:32.8]} 29. Kxb2 {[%clk 0:00:14.1]} 29... Rxb3+ {[%clk 0:00:33.6]} 30. Bxb3
{[%clk 0:00:11.8]} 30... Nc4+ {[%clk 0:00:34]} 0-1

[Event "Early-Titled-Tuesday-Blitz-April-16-2024"]
[Site "Chess.com"]
[Date "2024.04.16"]
[Round "9"]
[White "ActorXu"]
[Black "M1711"]
[Result "1-0"]
[WhiteElo "2846"]
[BlackElo "2698"]
[TimeControl "180+1"]
[EndTime "9:48:22 PDT"]
[Termination "ActorXu won by checkmate"]

1. e4 {[%clk 0:03:00.9]} 1... e6 {[%clk 0:02:59]} 2. d3 {[%clk 0:02:59.6]} 2...
c5 {[%clk 0:02:57.9]} 3. g3 {[%clk 0:02:57.3]} 3... d5 {[%clk 0:02:56.3]} 4. Nd2
{[%clk 0:02:56.6]} 4... Nc6 {[%clk 0:02:55.9]} 5. Ngf3 {[%clk 0:02:56]} 5... Nf6
{[%clk 0:02:55.5]} 6. Bg2 {[%clk 0:02:56.6]} 6... Be7 {[%clk 0:02:55.3]} 7. O-O
{[%clk 0:02:57.1]} 7... O-O {[%clk 0:02:55.6]} 8. e5 {[%clk 0:02:54.9]} 8... Nd7
{[%clk 0:02:55.5]} 9. Re1 {[%clk 0:02:55.6]} 9... b5 {[%clk 0:02:54.1]} 10. h4
{[%clk 0:02:55.2]} 10... Bb7 {[%clk 0:02:48.2]} 11. Nf1 {[%clk 0:02:55.4]} 11...
Qc7 {[%clk 0:02:47.6]} 12. Bf4 {[%clk 0:02:53.4]} 12... Rfc8 {[%clk 0:02:46.8]}
13. h5 {[%clk 0:02:51]} 13... h6 {[%clk 0:02:47]} 14. g4 {[%clk 0:02:47.7]}
14... a5 {[%clk 0:02:34.1]} 15. Qd2 {[%clk 0:02:46.7]} 15... Qd8 {[%clk
0:02:16.4]} 16. N1h2 {[%clk 0:02:24.2]} 16... a4 {[%clk 0:02:09]} 17. a3 {[%clk
0:02:22.8]} 17... b4 {[%clk 0:02:07]} 18. Re2 {[%clk 0:01:53.3]} 18... c4 {[%clk
0:01:46.7]} 19. d4 {[%clk 0:01:32]} 19... c3 {[%clk 0:01:44.9]} 20. bxc3 {[%clk
0:01:31.7]} 20... bxa3 {[%clk 0:01:41.9]} 21. g5 {[%clk 0:01:31.8]} 21... hxg5
{[%clk 0:01:39.9]} 22. Bxg5 {[%clk 0:01:31.1]} 22... Na5 {[%clk 0:01:10.9]} 23.
h6 {[%clk 0:01:24.1]} 23... Nc4 {[%clk 0:01:03.6]} 24. Qf4 {[%clk 0:01:22.6]}
24... gxh6 {[%clk 0:00:35]} 25. Bxh6 {[%clk 0:01:16.7]} 25... Nf8 {[%clk
0:00:35.2]} 26. Ng5 {[%clk 0:01:09.9]} 26... Qe8 {[%clk 0:00:32]} 27. Ng4 {[%clk
0:01:08.2]} 27... Nh7 {[%clk 0:00:09.9]} 28. Nf6+ {[%clk 0:00:48.1]} 28... Bxf6
{[%clk 0:00:09.8]} 29. exf6 {[%clk 0:00:47.5]} 29... Qd8 {[%clk 0:00:08.1]} 30.
Nxh7 {[%clk 0:00:40.1]} 30... Kxh7 {[%clk 0:00:07.9]} 31. Bg7 {[%clk 0:00:40.6]}
31... Qg8 {[%clk 0:00:02]} 32. Qh6# {[%clk 0:00:40.4]} 1-0

[Event "Early-Titled-Tuesday-Blitz-April-16-2024"]
[Site "Chess.com"]
[Date "2024.04.16"]
[Round "9"]
[White "Darius321"]
[Black "McCarthyStone"]
[Result "0-1"]
[WhiteElo "2321"]
[BlackElo "2385"]
[TimeControl "180+1"]
[EndTime "9:48:22 PDT"]
[Termination "McCarthyStone won by resignation"]

1. e4 {[%clk 0:02:58.1]} 1... g6 {[%clk 0:02:55.5]} 2. h4 {[%clk 0:02:57.6]}
2... h5 {[%clk 0:02:55.4]} 3. d4 {[%clk 0:02:55.8]} 3... c5 {[%clk 0:02:52.6]}
4. Be3 {[%clk 0:02:50.2]} 4... Bg7 {[%clk 0:02:51.4]} 5. Nf3 {[%clk 0:02:46.8]}
5... Nf6 {[%clk 0:02:50]} 6. Nc3 {[%clk 0:02:45.7]} 6... cxd4 {[%clk 0:02:49.2]}
7. Nxd4 {[%clk 0:02:44.8]} 7... Nc6 {[%clk 0:02:48.5]} 8. f3 {[%clk 0:02:44]}
8... Qb6 {[%clk 0:02:37.4]} 9. Qd2 {[%clk 0:02:31.1]} 9... Nxe4 {[%clk
0:02:35.8]} 10. Nxc6 {[%clk 0:02:19]} 10... Qxb2 {[%clk 0:02:19.1]} 11. Nxe4
{[%clk 0:01:06.3]} 11... Qxa1+ {[%clk 0:02:19.1]} 12. Kf2 {[%clk 0:01:05.3]}
12... dxc6 {[%clk 0:02:02.6]} 13. Rg1 {[%clk 0:00:29.9]} 13... Qxa2 {[%clk
0:01:39]} 14. Bd3 {[%clk 0:00:29]} 14... Bf5 {[%clk 0:01:33]} 15. g4 {[%clk
0:00:28.2]} 15... hxg4 {[%clk 0:01:30]} 16. fxg4 {[%clk 0:00:29.1]} 16... Bxe4
{[%clk 0:01:26.5]} 17. Bxe4 {[%clk 0:00:30]} 17... Rxh4 {[%clk 0:01:21.5]} 18.
Qb4 {[%clk 0:00:22.6]} 18... Qb2 {[%clk 0:00:23.1]} 19. Qc4 {[%clk 0:00:14.9]}
19... Rd8 {[%clk 0:00:16.9]} 20. Bxg6 {[%clk 0:00:12.8]} 20... fxg6 {[%clk
0:00:10.4]} 21. Qg8+ {[%clk 0:00:13.1]} 21... Kd7 {[%clk 0:00:10.9]} 22. Qxg7
{[%clk 0:00:10.6]} 22... Qxg7 {[%clk 0:00:10.3]} 0-1

[Event "Early-Titled-Tuesday-Blitz-April-16-2024"]
[Site "Chess.com"]
[Date "2024.04.16"]
[Round "9"]
[White "MaiqMaster"]
[Black "Alexei_Gubajdullin"]
[Result "0-1"]
[WhiteElo "2427"]
[BlackElo "2616"]
[TimeControl "180+1"]
[EndTime "9:48:23 PDT"]
[Termination "Alexei_Gubajdullin won on time"]

1. d4 {[%clk 0:03:00.9]} 1... Nf6 {[%clk 0:02:59.2]} 2. Nc3 {[%clk 0:02:58.3]}
2... d5 {[%clk 0:02:57.8]} 3. Bf4 {[%clk 0:02:58.3]} 3... a6 {[%clk 0:02:57.5]}
4. Nf3 {[%clk 0:02:55.6]} 4... g6 {[%clk 0:02:57.8]} 5. e3 {[%clk 0:02:51.2]}
5... Bg7 {[%clk 0:02:57.7]} 6. Ne5 {[%clk 0:02:44.6]} 6... O-O {[%clk
0:02:57.3]} 7. h4 {[%clk 0:02:42]} 7... h5 {[%clk 0:02:55.8]} 8. Qd2 {[%clk
0:02:38.4]} 8... Nbd7 {[%clk 0:02:55]} 9. O-O-O {[%clk 0:02:35.5]} 9... e6
{[%clk 0:02:49.3]} 10. f3 {[%clk 0:02:34.2]} 10... c5 {[%clk 0:02:48.8]} 11. g4
{[%clk 0:02:33.6]} 11... cxd4 {[%clk 0:02:45.8]} 12. exd4 {[%clk 0:02:31.9]}
12... hxg4 {[%clk 0:02:43.8]} 13. fxg4 {[%clk 0:02:27.8]} 13... Nxe5 {[%clk
0:02:44]} 14. dxe5 {[%clk 0:02:26.5]} 14... Nd7 {[%clk 0:02:44.2]} 15. h5 {[%clk
0:02:22.9]} 15... Nxe5 {[%clk 0:02:39.1]} 16. h6 {[%clk 0:02:20.5]} 16... Bf6
{[%clk 0:02:39.1]} 17. g5 {[%clk 0:02:18.1]} 17... Nf3 {[%clk 0:02:38.8]} 18.
Qe3 {[%clk 0:01:53.7]} 18... Nxg5 {[%clk 0:02:37.9]} 19. Bd3 {[%clk 0:01:53.6]}
19... Nh7 {[%clk 0:02:34.9]} 20. Rdg1 {[%clk 0:01:52]} 20... d4 {[%clk
0:02:33.1]} 21. Qe4 {[%clk 0:01:48.2]} 21... Kh8 {[%clk 0:02:18.5]} 22. Ne2
{[%clk 0:01:26.2]} 22... Bd7 {[%clk 0:02:17.5]} 23. Nxd4 {[%clk 0:01:09.4]}
23... Qa5 {[%clk 0:02:07.1]} 24. Rxg6 {[%clk 0:00:58.2]} 24... fxg6 {[%clk
0:01:40.9]} 25. Qxg6 {[%clk 0:00:59.1]} 25... Ng5 {[%clk 0:01:28.7]} 26. Rg1
{[%clk 0:00:13.9]} 26... Be8 {[%clk 0:01:11.9]} 27. Rxg5 {[%clk 0:00:10.4]}
27... Bxg6 {[%clk 0:01:11.7]} 28. Rxa5 {[%clk 0:00:09.9]} 28... Bxd3 {[%clk
0:01:12.3]} 29. Nxe6 {[%clk 0:00:08.6]} 29... b6 {[%clk 0:01:03.7]} 30. Rd5
{[%clk 0:00:04.1]} 30... Bc4 {[%clk 0:01:02.9]} 31. Nxf8 {[%clk 0:00:02.1]}
31... Bxd5 {[%clk 0:01:02.7]} 32. Nd7 {[%clk 0:00:03]} 32... Bd4 {[%clk
0:00:58.8]} 33. c3 {[%clk 0:00:02.7]} 33... Rd8 {[%clk 0:00:57.6]} 34. cxd4
{[%clk 0:00:01.2]} 34... Rxd7 {[%clk 0:00:57.7]} 35. Kc2 {[%clk 0:00:01.5]}
35... Bxa2 {[%clk 0:00:50.4]} 36. b3 {[%clk 0:00:01.9]} 36... Rf7 {[%clk
0:00:50.6]} 37. Be5+ {[%clk 0:00:01.9]} 37... Kh7 {[%clk 0:00:51.2]} 0-1